lending/lending_fUSD_20240610
["ID","MTS","AMOUNT","RATE_DAILY","PERIOD"]
[329013582,1718061072049,-500.0,0.00029699,4]
[329013583,1718061072061,-500.0,0.00029699,4]
[329013584,1718061072071,-500.0,0.00029699,4]
[329013585,1718061072082,-508.53219568,0.00029699,4]
[329013586,1718061072092,-500.0,0.00029699,4]
[329013587,1718061072102,-500.0,0.00029699,4]
[329013588,1718061072113,-500.0,0.00029699,4]
[329013589,1718061072124,-500.0,0.00029699,4]
[329013590,1718061072135,-172.64484607,0.00029699,4]
[329013591,1718061072146,-500.0,0.00029699,4]
[329013592,1718061072157,-500.0,0.00029699,4]
[329013593,1718061072167,-500.0,0.00029699,4]
[329013594,1718061072177,-500.0,0.00029699,4]
[329013595,1718061072187,-500.0,0.00029699,4]
[329013596,1718061072197,-500.0,0.00029699,4]
[329013597,1718061072208,-225.34656563,0.00029699,4]
[329013598,1718061072218,-500.0,0.00029699,4]
[329013599,1718061072229,-500.0,0.00029699,4]
[329013600,1718061072239,-500.0,0.00029699,4]
[329013601,1718061072249,-500.0,0.00029699,4]
[329013602,1718061072260,-500.0,0.00029699,4]
[329013603,1718061072271,-500.0,0.00029699,4]
[329013604,1718061072281,-500.0,0.00029699,4]
[329013605,1718061072291,-500.0,0.00029699,4]
[329013606,1718061072302,-500.0,0.00029699,4]
[329013607,1718061072312,-500.0,0.00029699,4]
[329013608,1718061072324,-500.0,0.00029699,4]
[329013609,1718061072334,-386.25743139,0.00029699,4]
[329013610,1718061072344,-566.29025233,0.00029699,4]
[329013611,1718061072356,-438.83599931,0.00029699,4]
[329013612,1718061072368,-3328.2,0.00029699,4]
[329013613,1718061072379,-500.0,0.00029699,4]
[329013614,1718061072389,-500.0,0.00029699,4]
[329013615,1718061072400,-500.0,0.00029699,4]
[329013616,1718061072410,-500.0,0.00029699,4]
[329013617,1718061072420,-500.0,0.00029699,4]
[329013618,1718061072430,-500.0,0.00029699,4]
[329013619,1718061072441,-500.0,0.00029699,4]
[329013620,1718061072531,-500.0,0.00029699,4]
[329013621,1718061072543,-500.0,0.00029699,4]
[329013622,1718061072554,-500.0,0.00029699,4]
[329013623,1718061072565,-500.0,0.00029699,4]
[329013624,1718061072576,-500.0,0.00029699,4]
[329013625,1718061072587,-500.0,0.00029699,4]
[329013626,1718061072598,-227.22,0.00029699,4]
[329013627,1718061072609,-500.0,0.00029699,4]
[329013628,1718061072621,-500.0,0.00029699,4]
[329013629,1718061072632,-530.25934769,0.00029699,4]
[329013630,1718061072643,-500.0,0.00029699,4]
[329013631,1718061072653,-500.0,0.00029699,4]
[329013632,1718061072663,-500.0,0.00029699,4]
[329013633,1718061072673,-500.0,0.00029699,4]
[329013634,1718061072684,-500.0,0.00029699,4]
[329013635,1718061072694,-2542.05,0.00029699,4]
[329013636,1718061072704,-500.0,0.00029699,4]
[329013637,1718061072714,-500.0,0.00029699,4]
[329013638,1718061072724,-500.0,0.00029699,4]
[329013639,1718061072736,-500.0,0.00029699,4]
[329013640,1718061072746,-500.0,0.00029699,4]
[329013641,1718061072757,-500.0,0.00029699,4]
[329013642,1718061072767,-500.0,0.00029699,4]
[329013643,1718061072778,-500.0,0.00029699,4]
[329013644,1718061072789,-500.0,0.00029699,4]
[329013645,1718061072799,-500.0,0.00029699,4]
[329013646,1718061072810,-500.0,0.00029699,4]
[329013647,1718061072821,-500.0,0.00029699,4]
[329013648,1718061072836,-500.0,0.00029699,4]
[329013649,1718061072846,-500.0,0.00029699,4]
[329013650,1718061072856,-500.0,0.00029699,4]
[329013651,1718061072867,-500.0,0.00029699,4]
[329013652,1718061072878,-500.0,0.00029699,4]
[329013653,1718061072890,-481.97,0.00029699,4]
[329013654,1718061072901,-500.0,0.00029699,4]
[329013655,1718061072914,-514.82827135,0.00029699,4]
[329013656,1718061072927,-500.0,0.00029699,4]
[329013657,1718061072938,-500.0,0.00029699,4]
[329013658,1718061072949,-520.1798745,0.00029699,4]
[329013659,1718061072960,-256.41,0.00029699,4]
[329013660,1718061072971,-945.53,0.00029699,4]
[329013661,1718061072982,-537.12038999,0.00029699,4]
[329013662,1718061072992,-500.0,0.00029699,4]
[329013663,1718061073003,-500.0,0.00029699,4]
[329013664,1718061073014,-500.0,0.00029699,4]
[329013665,1718061073024,-508.63,0.00029699,4]
[329013666,1718061073034,-500.0,0.00029699,4]
[329013667,1718061073045,-500.0,0.00029699,4]
[329013668,1718061073060,-500.0,0.00029699,4]
[329013669,1718061073071,-500.0,0.00029699,4]
[329013670,1718061073084,-500.0,0.00029699,4]
[329013671,1718061073095,-500.0,0.00029699,4]
[329013672,1718061073106,-500.0,0.00029699,4]
[329013673,1718061073117,-500.0,0.00029699,4]
[329013674,1718061073127,-500.0,0.00029699,4]
[329013675,1718061073138,-500.0,0.00029699,4]
[329013676,1718061073149,-3147.09,0.00029699,4]
[329013677,1718061073160,-500.0,0.00029699,4]
[329013678,1718061073171,-500.0,0.00029699,4]
[329013679,1718061073181,-500.0,0.00029699,4]
[329013680,1718061073192,-500.0,0.00029699,4]
[329013681,1718061073203,-500.0,0.00029699,4]
[329013682,1718061073216,-500.0,0.00029699,4]
[329013683,1718061073235,-500.0,0.00029699,4]
[329013684,1718061073252,-500.0,0.00029699,4]
[329013685,1718061073271,-500.0,0.00029699,4]
[329013686,1718061073292,-500.0,0.00029699,4]
[329013687,1718061073311,-500.0,0.00029699,4]
[329013688,1718061073328,-500.0,0.00029699,4]
[329013689,1718061073348,-500.0,0.00029699,4]
[329013690,1718061073367,-864.13,0.00029699,4]
[329013691,1718061073385,-500.0,0.00029699,4]
[329013692,1718061073404,-500.0,0.00029699,4]
[329013693,1718061073424,-500.0,0.00029699,4]
[329013694,1718061073437,-500.0,0.00029699,4]
[329013695,1718061073455,-500.0,0.00029699,4]
[329013696,1718061073472,-625.77,0.00029699,4]
[329013697,1718061073490,-500.0,0.00029699,4]
[329013698,1718061073506,-500.0,0.00029699,4]
[329013699,1718061073522,-500.0,0.00029699,4]
[329013700,1718061073539,-500.0,0.00029699,4]
[329013701,1718061073555,-500.0,0.00029699,4]
[329013702,1718061073571,-500.0,0.00029699,4]
[329013703,1718061073588,-500.0,0.00029699,4]
[329013704,1718061073604,-500.0,0.00029699,4]
[329013705,1718061073621,-500.0,0.00029699,4]
[329013706,1718061073636,-500.0,0.00029699,4]
[329013707,1718061073654,-11666.31250693,0.000297,2]
[329013708,1718061073668,-4000.0,0.000297,2]
[329013709,1718061073684,-4000.0,0.000297,2]
[329013710,1718061073699,-4000.0,0.000297,2]
[329013711,1718061073714,-4000.0,0.000297,2]
[329013712,1718061073730,-4000.0,0.000297,2]
[329013713,1718061073746,-4000.0,0.000297,2]
[329013714,1718061073762,-4000.0,0.000297,2]
[329013715,1718061073779,-4000.0,0.000297,2]
[329013716,1718061073795,-4000.0,0.000297,2]
[329013717,1718061073811,-4000.0,0.000297,2]
[329013718,1718061073826,-16712.44789579,0.000297,3]
[329013719,1718061073844,-633.01191121,0.00029726,30]
[329013720,1718061073859,-2100.0,0.00029778,2]
[329013721,1718061073876,-1714.489779,0.0002978,10]
[329013722,1718061073892,-5000.0,0.00029782,2]
[329013723,1718061073908,-5000.0,0.00029788,2]
[329013724,1718061073925,-1843.65,0.00029794,2]
[329013725,1718061073941,-500.0,0.000298,2]
[329013726,1718061073957,-500.0,0.000298,2]
[329013727,1718061073972,-500.0,0.000298,2]
[329013728,1718061073988,-500.0,0.000298,2]
[329013729,1718061074003,-500.0,0.000298,2]
[329013730,1718061074018,-9460.42352447,0.000298,30]
[329013731,1718061074033,-1000.0,0.000298,10]
[329013732,1718061074050,-155.0,0.000298,2]
[329013733,1718061074065,-155.0,0.000298,2]
[329013734,1718061074082,-786.87,0.0002981,2]
[329013735,1718061074097,-1000.0,0.0002982,10]
[329013736,1718061074112,-848.0,0.00029835,2]
[329013737,1718061074128,-709.0,0.00029835,2]
[329013738,1718061074143,-4955.65,0.00029836,2]
[329013739,1718061074158,-5800.0,0.00029838,2]
[329013740,1718061074173,-1000.0,0.0002984,10]
[329013741,1718061074190,-234.4,0.00029845,4]
[329013742,1718061074208,-500.0,0.00029845,4]
[329013743,1718061074225,-994.87,0.00029845,4]
[329013744,1718061074351,-500.0,0.00029845,4]
[329013745,1718061074373,-985.34,0.00029845,4]
[329013746,1718061074383,-400.38,0.00029845,4]
[329013747,1718061074395,-1114.92,0.00029845,4]
[329013748,1718061074406,-500.0,0.00029845,4]
[329013749,1718061074419,-500.0,0.00029845,4]
[329013750,1718061074429,-380.04,0.00029845,4]
[329013751,1718061074439,-4012.45,0.00029845,4]
[329013752,1718061074450,-500.0,0.00029845,4]
[329013753,1718061074461,-2791.45,0.00029845,4]
[329013754,1718061074471,-500.0,0.00029845,4]
[329013755,1718061074482,-500.0,0.00029845,4]
[329013756,1718061074492,-500.0,0.00029845,4]
[329013757,1718061074503,-961.66,0.00029845,4]
[329013758,1718061074514,-500.0,0.00029845,4]
[329013759,1718061074525,-500.0,0.00029845,4]
[329013760,1718061074537,-500.0,0.00029845,4]
[329013761,1718061074547,-500.0,0.00029845,4]
[329013762,1718061074558,-1585.59,0.00029845,4]
[329013763,1718061074569,-500.0,0.00029845,4]
[329013764,1718061074581,-500.0,0.00029845,4]
[329013765,1718061074592,-500.0,0.00029845,4]
[329013766,1718061074604,-500.0,0.00029845,4]
[329013767,1718061074615,-500.0,0.00029845,4]
[329013768,1718061074625,-5800.0,0.00029846,2]
[329013769,1718061074635,-5800.0,0.00029855,2]
[329013770,1718061074648,-1000.0,0.0002986,10]
[329013771,1718061074660,-5800.0,0.00029863,2]
[329013772,1718061074671,-150.5,0.00029869,15]
[329013773,1718061074690,-500.0,0.00029869,4]
[329013774,1718061074702,-500.0,0.00029869,4]
[329013775,1718061074713,-500.0,0.00029869,4]
[329013776,1718061074724,-500.0,0.00029869,4]
[329013777,1718061074735,-381.39,0.00029869,4]
[329013778,1718061074746,-500.0,0.00029869,4]
[329013779,1718061074757,-67584.20356499,0.0002987,7]
[329013780,1718061074768,-150.5,0.00029879,15]
[329013781,1718061074781,-1000.0,0.0002988,10]
[329013782,1718061074793,-436.7004128,0.00029888,2]
[329013783,1718061074804,-169.5349106,0.00029888,2]
[329013784,1718061074814,-150.5,0.00029889,15]
[329013785,1718061074829,-163.72084607,0.00029889,2]
[329013786,1718061074844,-11645.44476575,0.00029889,2]
[329013787,1718061074854,-436.70041278,0.00029894,2]
[329013788,1718061074865,-11645.44476575,0.00029895,2]
[329013789,1718061074877,-413.39535634,0.00029898,4]
[329013790,1718061074888,-500.0,0.00029898,4]
[329013791,1718061074900,-500.0,0.00029898,4]
[329013792,1718061074911,-500.0,0.00029898,4]
[329013793,1718061074924,-500.0,0.00029898,4]
[329013794,1718061074936,-500.0,0.00029898,4]
[329013795,1718061074947,-500.0,0.00029898,4]
[329013796,1718061074959,-500.0,0.00029898,4]
[329013797,1718061074971,-500.0,0.00029898,4]
[329013798,1718061074981,-500.0,0.00029898,4]
[329013799,1718061074995,-500.0,0.00029898,4]
[329013800,1718061075006,-500.0,0.00029898,4]
[329013801,1718061075017,-263.19,0.00029898,4]
[329013802,1718061075027,-500.0,0.00029898,4]
[329013803,1718061075037,-500.0,0.00029898,4]
[329013804,1718061075048,-500.0,0.00029898,4]
[329013805,1718061075060,-500.0,0.00029898,4]
[329013806,1718061075071,-500.0,0.00029898,4]
[329013807,1718061075083,-500.0,0.00029898,4]
[329013808,1718061075095,-398.09,0.00029898,4]
[329013809,1718061075105,-500.0,0.00029898,4]
[329013810,1718061075116,-598.86970138,0.00029898,4]
[329013811,1718061075126,-500.0,0.00029898,4]
[329013812,1718061075137,-427.8,0.00029898,4]
[329013813,1718061075147,-500.0,0.00029898,4]
[329013814,1718061075157,-500.0,0.00029898,4]
[329013815,1718061075167,-500.0,0.00029898,4]
[329013816,1718061075177,-500.0,0.00029898,4]
[329013817,1718061075188,-2770.45,0.00029898,4]
[329013818,1718061075199,-500.0,0.00029898,4]
[329013819,1718061075209,-552.45,0.00029898,4]
[329013820,1718061075219,-500.0,0.00029898,4]
[329013821,1718061075230,-317.25,0.00029898,4]
[329013822,1718061075240,-500.0,0.00029898,4]
[329013823,1718061075250,-500.0,0.00029898,4]
[329013824,1718061075260,-500.0,0.00029898,4]
[329013825,1718061075270,-500.0,0.00029898,4]
[329013826,1718061075282,-152.63,0.00029898,4]
[329013827,1718061075293,-500.0,0.00029898,4]
[329013828,1718061075303,-629.14,0.00029898,4]
[329013829,1718061075313,-500.0,0.00029898,4]
[329013830,1718061075323,-500.0,0.00029898,4]
[329013831,1718061075334,-500.0,0.00029898,4]
[329013832,1718061075344,-500.0,0.00029898,4]
[329013833,1718061075360,-500.0,0.00029898,4]
[329013834,1718061075371,-500.0,0.00029898,4]
[329013835,1718061075382,-214.53,0.00029898,4]
[329013836,1718061075393,-500.0,0.00029898,4]
[329013837,1718061075403,-605.55,0.00029898,4]
[329013838,1718061075414,-500.0,0.00029898,4]
[329013839,1718061075424,-500.0,0.00029898,4]
[329013840,1718061075434,-500.0,0.00029898,4]
[329013841,1718061075445,-500.0,0.00029898,4]
[329013842,1718061075455,-500.0,0.00029898,4]
[329013843,1718061075465,-500.0,0.00029898,4]
[329013844,1718061075476,-618.55,0.00029898,4]
[329013845,1718061075486,-618.20885671,0.00029898,4]
[329013846,1718061075497,-608.75,0.00029898,4]
[329013847,1718061075508,-623.88,0.00029898,4]
[329013848,1718061075518,-207.34,0.00029898,4]
[329013849,1718061075530,-500.0,0.00029898,4]
[329013850,1718061075541,-500.0,0.00029898,4]
[329013851,1718061075551,-175.2,0.00029898,4]
[329013852,1718061075561,-431.60542671,0.00029898,4]
[329013853,1718061075572,-500.0,0.00029898,4]
[329013854,1718061075584,-500.0,0.00029898,4]
[329013855,1718061075594,-500.0,0.00029898,4]
[329013856,1718061075604,-500.0,0.00029898,4]
[329013857,1718061075615,-500.0,0.00029898,4]
[329013858,1718061075625,-500.0,0.00029898,4]
[329013859,1718061075636,-500.0,0.00029898,4]
[329013860,1718061075648,-500.0,0.00029898,4]
[329013861,1718061075661,-537.97749178,0.00029898,4]
[329013862,1718061075672,-500.0,0.00029898,4]
[329013863,1718061075682,-536.17449525,0.00029898,4]
[329013864,1718061075693,-500.0,0.00029898,4]
[329013865,1718061075704,-500.0,0.00029898,4]
[329013866,1718061075716,-500.0,0.00029898,4]
[329013867,1718061075727,-277.13,0.00029898,4]
[329013868,1718061075741,-500.0,0.00029898,4]
[329013869,1718061075751,-500.0,0.00029898,4]
[329013870,1718061075762,-500.0,0.00029898,4]
[329013871,1718061075773,-500.0,0.00029898,4]
[329013872,1718061075784,-500.0,0.00029898,4]
[329013873,1718061075795,-500.0,0.00029898,4]
[329013874,1718061075806,-500.0,0.00029898,4]
[329013875,1718061075816,-500.0,0.00029898,4]
[329013876,1718061075827,-500.0,0.00029898,4]
[329013877,1718061075842,-500.0,0.00029898,4]
[329013878,1718061075853,-500.0,0.00029898,4]
[329013879,1718061075864,-500.0,0.00029898,4]
[329013880,1718061075877,-500.0,0.00029898,4]
[329013881,1718061075892,-613.73,0.00029898,4]
[329013882,1718061075904,-500.0,0.00029898,4]
[329013883,1718061075916,-500.0,0.00029898,4]
[329013884,1718061075926,-500.0,0.00029898,4]
[329013885,1718061075937,-500.0,0.00029898,4]
[329013886,1718061075950,-395.35897951,0.00029898,4]
[329013887,1718061075961,-574.73,0.00029898,4]
[329013888,1718061075972,-500.0,0.00029898,4]
[329013889,1718061075982,-432.78136909,0.00029898,4]
[329013890,1718061075993,-500.0,0.00029898,4]
[329013891,1718061076004,-500.0,0.00029898,4]
[329013892,1718061076014,-500.0,0.00029898,4]
[329013893,1718061076024,-500.0,0.00029898,4]
[329013894,1718061076046,-500.0,0.00029898,4]
[329013895,1718061076056,-353.24,0.00029898,4]
[329013896,1718061076066,-500.0,0.00029898,4]
[329013897,1718061076078,-366.72663863,0.00029898,4]
[329013898,1718061076088,-500.0,0.00029898,4]
[329013899,1718061076098,-500.0,0.00029898,4]
[329013900,1718061076108,-500.0,0.00029898,4]
[329013901,1718061076119,-500.0,0.00029898,4]
[329013902,1718061076129,-500.0,0.00029898,4]
[329013903,1718061076140,-500.0,0.00029898,4]
[329013904,1718061076150,-500.0,0.00029898,4]
[329013905,1718061076160,-500.0,0.00029898,4]
[329013906,1718061076170,-500.0,0.00029898,4]
[329013907,1718061076182,-500.0,0.00029898,4]
[329013908,1718061076192,-507.24822361,0.00029898,4]
[329013909,1718061076204,-500.0,0.00029898,4]
[329013910,1718061076219,-500.0,0.00029898,4]
[329013911,1718061076230,-500.0,0.00029898,4]
[329013912,1718061076241,-500.0,0.00029898,4]
[329013913,1718061076251,-500.0,0.00029898,4]
[329013914,1718061076261,-500.0,0.00029898,4]
[329013915,1718061076271,-500.0,0.00029898,4]
[329013916,1718061076281,-500.0,0.00029898,4]
[329013917,1718061076292,-500.0,0.00029898,4]
[329013918,1718061076302,-500.0,0.00029898,4]
[329013919,1718061076313,-500.0,0.00029898,4]
[329013920,1718061076323,-500.0,0.00029898,4]
[329013921,1718061076335,-500.0,0.00029898,4]
[329013922,1718061076345,-500.0,0.00029898,4]
[329013923,1718061076358,-500.0,0.00029898,4]
[329013924,1718061076368,-500.0,0.00029898,4]
[329013925,1718061076381,-500.0,0.00029898,4]
[329013926,1718061076396,-500.0,0.00029898,4]
[329013927,1718061076407,-945.53,0.00029898,4]
[329013928,1718061076418,-500.0,0.00029898,4]
[329013929,1718061076518,-539.07317872,0.00029898,4]
[329013930,1718061076528,-500.0,0.00029898,4]
[329013931,1718061076538,-500.0,0.00029898,4]
[329013932,1718061076548,-500.0,0.00029898,4]
[329013933,1718061076558,-500.0,0.00029898,4]
[329013934,1718061076569,-500.0,0.00029898,4]
[329013935,1718061076581,-569.24,0.00029898,4]
[329013936,1718061076591,-500.0,0.00029898,4]
[329013937,1718061076602,-500.0,0.00029898,4]
[329013938,1718061076612,-500.0,0.00029898,4]
[329013939,1718061076624,-3147.09,0.00029898,4]
[329013940,1718061076635,-500.0,0.00029898,4]
[329013941,1718061076646,-568.78,0.00029898,4]
[329013942,1718061076656,-500.0,0.00029898,4]
[329013943,1718061076667,-500.0,0.00029898,4]
[329013944,1718061076678,-500.0,0.00029898,4]
[329013945,1718061076689,-500.0,0.00029898,4]
[329013946,1718061076699,-500.0,0.00029898,4]
[329013947,1718061076710,-500.0,0.00029898,4]
[329013948,1718061076721,-500.0,0.00029898,4]
[329013949,1718061076732,-610.95,0.00029898,4]
[329013950,1718061076743,-311.75,0.00029898,4]
[329013951,1718061076754,-864.13,0.00029898,4]
[329013952,1718061076765,-500.0,0.00029898,4]
[329013953,1718061076777,-500.0,0.00029898,4]
[329013954,1718061076789,-500.0,0.00029898,4]
[329013955,1718061076799,-500.0,0.00029898,4]
[329013956,1718061076809,-582.93,0.00029898,4]
[329013957,1718061076821,-500.0,0.00029898,4]
[329013958,1718061076835,-500.0,0.00029898,4]
[329013959,1718061076847,-500.0,0.00029898,4]
[329013960,1718061076858,-500.0,0.00029898,4]
[329013961,1718061076869,-500.0,0.00029898,4]
[329013962,1718061076882,-500.0,0.00029898,4]
[329013963,1718061076892,-500.0,0.00029898,4]
[329013964,1718061076903,-500.0,0.00029898,4]
[329013965,1718061076918,-500.0,0.00029898,4]
[329013966,1718061076928,-9242.51443001,0.00029899,2]
[329013967,1718061076939,-1000.0,0.00029899,2]
[329013968,1718061076950,-1000.0,0.00029899,2]
[329013969,1718061076961,-160.0,0.00029899,2]
[329013970,1718061076971,-500.0,0.00029899,3]
[329013971,1718061076983,-500.0,0.00029899,3]
[329013972,1718061076993,-647.93385837,0.00029899,4]
[329013973,1718061077003,-500.0,0.00029899,4]
[329013974,1718061077013,-364.56,0.00029899,4]
[329013975,1718061077024,-276.47655137,0.00029899,4]
[329013976,1718061077036,-500.0,0.00029899,4]
[329013977,1718061077048,-500.0,0.00029899,4]
[329013978,1718061077058,-500.0,0.00029899,4]
[329013979,1718061077069,-500.0,0.00029899,4]
[329013980,1718061077081,-500.0,0.00029899,4]
[329013981,1718061077093,-500.0,0.00029899,4]
[329013982,1718061077105,-500.0,0.00029899,4]
[329013983,1718061077115,-500.0,0.00029899,4]
[329013984,1718061077125,-500.0,0.00029899,4]
[329013985,1718061077136,-500.0,0.00029899,4]
[329013986,1718061077147,-594.49,0.00029899,4]
[329013987,1718061077158,-10083.83,0.00029899,2]
[329013988,1718061077169,-500.0,0.00029899,4]
[329013989,1718061077179,-500.0,0.00029899,4]
[329013990,1718061077189,-500.0,0.00029899,4]
[329013991,1718061077200,-500.0,0.00029899,4]
[329013992,1718061077211,-500.0,0.00029899,4]
[329013993,1718061077221,-508.26006204,0.00029899,4]
[329013994,1718061077232,-508.53247514,0.00029899,4]
[329013995,1718061077243,-500.0,0.00029899,4]
[329013996,1718061077254,-500.0,0.00029899,4]
[329013997,1718061077264,-500.0,0.00029899,4]
[329013998,1718061077274,-500.0,0.00029899,4]
[329013999,1718061077284,-546.63,0.00029899,4]
[329014000,1718061077294,-500.0,0.00029899,4]
[329014001,1718061077304,-500.0,0.00029899,4]
[329014002,1718061077314,-500.0,0.00029899,4]
[329014003,1718061077326,-3328.2,0.00029899,4]
[329014004,1718061077335,-197.15609569,0.00029899,4]
[329014005,1718061077346,-500.0,0.00029899,4]
[329014006,1718061077359,-500.0,0.00029899,4]
[329014007,1718061077371,-500.0,0.00029899,4]
[329014008,1718061077382,-500.0,0.00029899,4]
[329014009,1718061077393,-500.0,0.00029899,4]
[329014010,1718061077405,-500.0,0.00029899,4]
[329014011,1718061077416,-2542.05,0.00029899,4]
[329014012,1718061077426,-500.0,0.00029899,4]
[329014013,1718061077437,-243.15,0.00029899,4]
[329014014,1718061077447,-500.0,0.00029899,4]
[329014015,1718061077457,-500.0,0.00029899,4]
[329014016,1718061077468,-500.0,0.00029899,4]
[329014017,1718061077478,-500.0,0.00029899,4]
[329014018,1718061077489,-500.0,0.00029899,4]
[329014019,1718061077500,-500.0,0.00029899,4]
[329014020,1718061077511,-500.0,0.00029899,4]
[329014021,1718061077521,-500.0,0.00029899,4]
[329014022,1718061077532,-500.0,0.00029899,4]
[329014023,1718061077543,-500.0,0.00029899,4]
[329014024,1718061077554,-522.41,0.00029899,4]
[329014025,1718061077564,-500.0,0.00029899,4]
[329014026,1718061077576,-500.0,0.00029899,4]
[329014027,1718061077587,-500.0,0.00029899,4]
[329014028,1718061077597,-29752.5462241,0.000299,2]
[329014029,1718061077607,-500.0,0.000299,2]
[329014030,1718061077617,-500.0,0.000299,2]
[329014031,1718061077627,-500.0,0.000299,2]
[329014032,1718061077638,-500.0,0.000299,2]
[329014033,1718061077648,-500.0,0.000299,2]
[329014034,1718061077657,-9054.30728723,0.000299,2]
[329014035,1718061077670,-173.91421124,0.000299,2]
[329014036,1718061077680,-1000.0,0.000299,10]
[329014037,1718061077690,-1616.3611595,0.000299,2]
[329014038,1718061077700,-191.16189019,0.000299,2]
[329014039,1718061077712,-150.0,0.000299,6]
[329014040,1718061077723,-436.70041278,0.000299,2]
[329014041,1718061077734,-11645.44476575,0.000299,2]
[329014042,1718061077746,-155.0,0.00029905,2]
[329014043,1718061077756,-154.45826535,0.00029906,2]
[329014044,1718061077767,-500.0,0.00029909,4]
[329014045,1718061077778,-994.87,0.00029909,4]
[329014046,1718061077789,-500.0,0.00029909,4]
[329014047,1718061077799,-985.34,0.00029909,4]
[329014048,1718061077811,-1114.92,0.00029909,4]
[329014049,1718061077823,-500.0,0.00029909,4]
[329014050,1718061077838,-500.0,0.00029909,4]
[329014051,1718061077848,-4012.45,0.00029909,4]
[329014052,1718061077859,-500.0,0.00029909,4]
[329014053,1718061077870,-2791.45,0.00029909,4]
[329014054,1718061077882,-500.0,0.00029909,4]
[329014055,1718061077893,-500.0,0.00029909,4]
[329014056,1718061077903,-500.0,0.00029909,4]
[329014057,1718061077914,-961.66,0.00029909,4]
[329014058,1718061077925,-500.0,0.00029909,4]
[329014059,1718061077935,-500.0,0.00029909,4]
[329014060,1718061077946,-500.0,0.00029909,4]
[329014061,1718061077957,-500.0,0.00029909,4]
[329014062,1718061077968,-1585.59,0.00029909,4]
[329014063,1718061077978,-500.0,0.00029909,4]
[329014064,1718061077989,-500.0,0.00029909,4]
[329014065,1718061077999,-500.0,0.00029909,4]
[329014066,1718061078010,-46692.17817889,0.0002991,2]
[329014067,1718061078021,-1000.0,0.0002992,10]
[329014068,1718061078032,-1000.0,0.0002994,10]
[329014069,1718061078042,-5000.0,0.00029952,2]
[329014070,1718061078052,-1000.0,0.0002996,10]
[329014071,1718061078062,-400.0,0.0002997,2]
[329014072,1718061078072,-559.73755837,0.0002997,2]
[329014073,1718061078086,-208.2,0.00029972,2]
[329014074,1718061078096,-1633583.14259547,0.00029973,5]
[329014075,1718061078108,-150.5,0.00029977,15]
[329014076,1718061078118,-500.0,0.00029977,4]
[329014077,1718061078128,-500.0,0.00029977,4]
[329014078,1718061078138,-500.0,0.00029977,4]
[329014079,1718061078149,-500.0,0.00029977,4]
[329014080,1718061078159,-500.0,0.00029977,4]
[329014081,1718061078169,-339.55,0.00029977,4]